Cogmind - Beta 17 @@@ ROGUE MODE // 2026.08.15 @ 20:53:48 Player: Mingebag Result: Destroyed by P-70 Sage with Tesla Rifle Performance ------------- Evolutions (5) 2500 Regions Visited (17) 3400 Robots Destroyed (103) 515 Value Destroyed (3158) 3158 Prototype IDs (44) 880 Alien Tech Used (0) 0 Bonus (1982) 1982 TOTAL SCORE: 12435 Bonus ------- High Alert Combat Kills 73 Follower Combat Kills 1009 Aligned with FarCom 300 Met Data Miner 300 Met Imprinter 300 Cogmind --------- Core Integrity 0/1000 Matter 230/300 Energy 100/100 System Corruption 6% Temperature Cool (0) Movement Core (50) Location -5/Factory Parts ------- > --- POWER (2) -------- (None) > --- PROPULSION (5) --- (None) > --- UTILITY (8) ------ (None) > --- WEAPON (2) ------- (None) > --- INVENTORY (5) ---- Reinforced Deuterium Engine Improved Titanium Leg Peak State ------------ > --- POWER ------------ Makeshift Power Source Light Fission Core > --- PROPULSION ------- Impulse Thruster Impulse Thruster Impulse Thruster Impulse Thruster > --- UTILITY ---------- Small Storage Unit Hacking Suite Hacking Suite Makeshift Hacking Suite System Shield System Shield Drone Bay > --- WEAPON ----------- Slug Cannon Powered Hammer > --- INVENTORY -------- Light Fission Core VTOL Module VTOL Module Structural Scanner Advanced Signal Interpreter Transmission Jammer Advanced ECM Suite Field Lobotomy Kit [Rating: 70] Favorites ----------- Power Light Ion Engine Engine Light Ion Engine Power Core Nuclear Core Reactor Antimatter Reactor Propulsion Light Treads Treads Light Treads Leg Makeshift Leg Hover Unit Gyrokinetic Inverter Flight Unit Cesium-ion Thruster Utility System Shield Device Structural Scanner Storage High-capacity Storage Unit Processor Advanced Signal Interpreter Hackware System Shield Protection Utility Shielding Weapon Grenade Launcher Energy Gun Particle Gun Ballistic Gun Assault Rifle Ballistic Cannon Slug Cannon Launcher Grenade Launcher Special Weapon Field Lobotomy Kit Impact Weapon Powered Hammer Slashing Weapon Scythe Special Melee Weapon Improved Datajack Build | -11 -10 -10 -10 -9 -8 -7 -7 -7 -7 -6 -6 -6 -6 -6 -6 -5 -5 ------- Run | Yrd Mat Min Exi Min Mat Fac Low Low Zio Pro Fac Was Fac Low Dat Pro Fac Slots Evolved 10 | . . . . . 4 2 . . . . 2 . . . . . 2 Power 1 | . . . . . 1 . . . . . . . . . . . . Propulsion 3 | . . . . . 2 . . . . . . . . . . . 1 Utility 6 | . . . . . 1 2 . . . . 2 . . . . . 1 Weapon . | . . . . . . . . . . . . . . . . . . Parts Attached 133 | 6 4 2 . 8 41 15 3 . 8 8 3 4 11 . . 11 9 Power 22 | 1 . . . 2 7 2 . . . 3 . 2 1 . . 3 1 Engine 14 | 1 . . . 2 4 2 . . . 2 . 1 . . . 2 . Core 7 | . . . . . 3 . . . . 1 . . 1 . . 1 1 Reactor 1 | . . . . . . . . . . . . 1 . . . . . Propulsion 46 | 2 . . . 2 13 8 2 . 4 2 . 1 8 . . 1 3 Treads 13 | 2 . . . 2 6 . 2 . . . . . . . . 1 . Leg 14 | . . . . . 7 . . . 4 2 . 1 . . . . . Wheel . | . . . . . . . . . . . . . . . . . . Hover 1 | . . . . . . . . . . . . . . . . . 1 Flight 18 | . . . . . . 8 . . . . . . 8 . . . 2 Utility 32 | 1 2 . . 2 10 3 1 . 2 . 1 . 1 . . 6 3 Device 12 | . . . . . 6 . 1 . . . . . . . . 4 1 Storage 4 | 1 1 . . 1 . . . . 1 . . . . . . . . Processor 2 | . . . . . . . . . . . . . 1 . . 1 . Hackware 8 | . . . . . 1 3 . . 1 . 1 . . . . . 2 Protection 6 | . 1 . . 1 3 . . . . . . . . . . 1 . Artifact . | . . . . . . . . . . . . . . . . . . Weapon 33 | 2 2 2 . 2 11 2 . . 2 3 2 1 1 . . 1 2 Energy Gun 9 | . . . . . 8 . . . . 1 . . . . . . . Energy Cannon . | . . . . . . . . . . . . . . . . . . Ballistic Gun 4 | 2 1 . . . . . . . . 1 . . . . . . . Ballistic Cannon 3 | . 1 . . . . . . . . . 1 1 . . . . . Launcher 9 | . . 2 . 1 1 1 . . 2 1 . . 1 . . . . Special Weapon 2 | . . . . 1 . . . . . . . . . . . 1 . Impact Weapon 4 | . . . . . 1 1 . . . . 1 . . . . . 1 Slashing Weapon 1 | . . . . . 1 . . . . . . . . . . . . Piercing Weapon . | . . . . . . . . . . . . . . . . . . Special Melee Weapon 1 | . . . . . . . . . . . . . . . . . 1 Unidentified Prototypes 4 | . . . . . 1 . . . 1 . . . . . . . 2 Parts Lost 57 | . . . . 3 17 5 2 6 . 4 . . 1 . . 7 12 Power 13 | . . . . 2 3 2 . 2 . . . . . . . 3 1 Propulsion 24 | . . . . 1 6 3 2 2 . 2 . . 1 . . 4 3 Utility 13 | . . . . . 5 . . 1 . . . . . . . . 7 Weapon 7 | . . . . . 3 . . 1 . 2 . . . . . . 1 Highest Loss Streak 8 | . . . . 1 4 3 1 6 . 3 . . 1 . . 4 8 To Critical Strikes . | . . . . . . . . . . . . . . . . . . Average Backups 12 | 2 12 20 19 19 19 4 4 3 7 7 7 7 7 7 7 5 5 Power 1 | . 1 3 3 2 1 . . . . . . 1 . 1 1 . . Propulsion 2 | . 2 5 4 3 2 1 . . . . 1 1 1 2 2 1 1 Utility 5 | . 4 8 8 8 10 . 2 2 3 4 3 3 3 3 3 2 1 Weapon 2 | . 3 4 4 3 4 1 1 . 2 2 1 1 . . . . . Tool/Special . | . . . . . . . . . . . . . . . . . . Unused Backups 30 | . . . 1 2 14 7 . . . . . . 4 . . 1 1 Power 1 | . . . . . . . . . . . . . 1 . . . . Propulsion 9 | . . . 1 . 4 2 . . . . . . 1 . . . 1 Utility 13 | . . . . 2 5 4 . . . . . . 1 . . 1 . Weapon 7 | . . . . . 5 1 . . . . . . 1 . . . . Tool/Special . | . . . . . . . . . . . . . . . . . . Average Slot Usage (%) 91 | . 98 100 100 99 99 90 73 56 69 72 98 100 96 96 100 83 73 Engine 9 | . 14 14 14 13 9 6 7 4 . . 13 10 6 6 6 8 9 Core 3 | . . . . . 8 7 7 4 . . . . 4 6 6 2 . Treads 15 | . 28 28 28 28 29 . 1 4 . . . . . . . 2 4 Leg 5 | . . . . . 6 . . . 26 26 26 26 14 . . . . Flight 4 | . . . . . . 29 10 4 . . . . 11 26 26 14 . Device 5 | . . . . . 10 6 7 7 . . 5 6 4 6 6 13 9 Storage 8 | . 14 14 14 14 9 . . . 6 7 6 6 6 6 6 6 4 Hackware 12 | . . . . . . 29 30 26 29 30 31 33 33 33 33 22 17 Protection 6 | . 12 14 14 13 6 . . . . . . . . . . . 4 Energy Gun 3 | . . . . . 15 . . . . . 1 . . . . . . Ballistic Gun 2 | . 23 . . 7 . . . . . 3 . . . . . . . Ballistic Cannon 1 | . 4 . . 7 . . . . . . 4 6 3 3 6 3 1 Launcher 5 | . . 27 28 12 . . 4 4 4 3 . . . . . . . Impact Weapon 1 | . . . . . . 5 2 . . . 4 6 6 6 6 2 3 Peak Build Rating 70 | 6 9 9 10 12 37 39 32 28 37 48 52 60 66 66 66 70 68 Average Rating 29 | 4 7 9 9 10 25 34 26 20 31 32 50 55 57 65 66 55 57 On Entrance 32 | . 6 9 9 10 11 37 31 28 11 35 48 51 60 62 66 66 51 Avg Prop Armor Cover (%) 8 | . . . . . 6 2 2 3 7 8 . . . . . 4 21 Naked Turns 4 | . . . . . . . . . . . . . . . . . 4 Heaviest Build 66 | 11 49 50 50 59 66 21 15 16 11 31 34 45 45 27 27 56 56 Greatest Support 84 | 40 40 40 40 40 84 24 56 28 80 75 70 83 83 28 28 30 30 Greatest Overweight (x) 16 | 3 1 1 1 1 4 1 2 . . . . . 2 . . 1 16 Average Overweight (x) . | . . 1 1 1 . . . . . . . . . . . . . Largest Inventory Capacity 20 | 8 20 20 20 20 20 20 5 5 8 8 8 8 8 8 8 8 8 Average Capacity 13 | 7 15 20 20 20 20 5 5 5 7 8 8 8 8 8 8 8 7 Most Carried 20 | 4 20 20 20 20 20 20 5 4 8 8 8 8 8 8 7 8 8 Average Carried 12 | 2 12 20 19 19 19 4 4 3 7 7 7 7 7 7 7 5 5 Final Capacity 20 | 8 20 20 20 20 20 5 5 5 8 8 8 8 8 8 8 8 5 Final Carried 20 | 4 20 20 20 20 20 4 4 4 8 8 7 8 8 7 7 5 2 Class Distribution -------------------- 33% | Mutant 27% | Hacker-Mutant 20% | Scavenger-Mutant 13% | Hacker-Sprinter 3% | Derelict-Mutant Dominant Class ---------------- Mutant | -10/Materials Mutant | -10/Mines Mutant | -10/Exiles Mutant | -9/Mines Scavenger-Mutant | -8/Materials Hacker-Sprinter | -7/Factory Hacker-Mutant | -7/Lower Caves Hacker-Mutant | -7/Lower Caves Hacker-Mutant | -7/Zion Hacker-Mutant | -6/Proximity Caves Hacker-Mutant | -6/Factory Hacker-Mutant | -6/Waste Hacker-Mutant | -6/Factory Hacker-Mutant | -6/Lower Caves Hacker-Sprinter | -6/Data Miner Hacker-Sprinter | -5/Proximity Caves Hacker-Mutant | -5/Factory Resources | -11 -10 -10 -10 -9 -8 -7 -7 -7 -7 -6 -6 -6 -6 -6 -6 -5 -5 ----------- Run | Yrd Mat Min Exi Min Mat Fac Low Low Zio Pro Fac Was Fac Low Dat Pro Fac Matter Collected 3318 | 187 320 39 . 332 1217 22 85 92 107 271 . 74 191 . . 190 191 Remotely . | . . . . . . . . . . . . . . . . . . Salvage Created 2658 | . 216 18 . 227 1558 22 . 148 . 302 . . . . . . 167 Parts 178 | . 17 2 . 21 112 5 . 5 . 8 . . . . . . 8 Haulers Intercepted 4 | . 1 . . . 3 . . . . . . . . . . . . Recyclers Shooed 1 | . . . . . 1 . . . . . . . . . . . . Parts Field Recycled . | . . . . . . . . . . . . . . . . . . Retrieved Matter . | . . . . . . . . . . . . . . . . . . Parts Self-Destructed 17 | . . . . . . . . 4 . 4 . . . . . 9 . Prevented . | . . . . . . . . . . . . . . . . . . Parts Restored . | . . . . . . . . . . . . . . . . . . Kills | -11 -10 -10 -10 -9 -8 -7 -7 -7 -7 -6 -6 -6 -6 -6 -6 -5 -5 ------- Run | Yrd Mat Min Exi Min Mat Fac Low Low Zio Pro Fac Was Fac Low Dat Pro Fac Combat Hostiles Destroyed 75 | . 3 . . 16 35 1 . 7 . 10 . . . . . . 3 Melee 2 | . . . . . 1 . . . . . . . . . . . 1 Guns 24 | . . . . 3 21 . . . . . . . . . . . . Cannons 7 | . 3 . . 4 . . . . . . . . . . . . . AOE 42 | . . . . 9 13 1 . 7 . 10 . . . . . . 2 Classes Destroyed 16 | . 4 1 . 3 5 1 . 1 . 1 . . . . . . . Worker 7 | . . 1 . 2 4 . . . . . . . . . . . . Builder 10 | . . . . . 5 . . . . . . . . . . . 5 Hauler 4 | . 1 . . . 3 . . . . . . . . . . . . Recycler 1 | . . . . . 1 . . . . . . . . . . . . Operator 2 | . 1 . . . 1 . . . . . . . . . . . . Watcher 6 | . 2 . . . 4 . . . . . . . . . . . . Swarmer 20 | . . . . 9 11 . . . . . . . . . . . . Grunt 30 | . 3 . . 3 13 . . 5 . 4 . . . . . . 2 Brawler 1 | . . . . . 1 . . . . . . . . . . . . Duelist 5 | . . . . . . . . 1 . 4 . . . . . . . Protector 1 | . . . . . . . . . . 1 . . . . . . . Sentry 11 | . . . . 2 7 . . 1 . 1 . . . . . . . Specialist 2 | . . . . . 2 . . . . . . . . . . . . Programmer 2 | . . . . . . 1 . . . . . . . . . . 1 Heavy 1 | . . . . . 1 . . . . . . . . . . . . Assembled 2 | . . . . 2 . . . . . . . . . . . . . Best Kill Streak 5 | . 3 1 . 4 5 1 . 4 . 5 . . . . . . 5 Combat Bots Only 5 | . 3 . . 4 4 1 . 4 . 5 . . . . . . 2 Max Kills in Single Turn 5 | . 1 1 . 3 3 1 . 2 . 3 . . . . . . 5 Gunslinging . | . . . . . . . . . . . . . . . . . . Exploded 3 | . . . . 3 2 1 . 2 . 3 . . . . . . 2 Melee 1 | . . . . . 1 . . . . . . . . . . . 1 Uniques/NPCs Destroyed . | . . . . . . . . . . . . . . . . . . Combat | -11 -10 -10 -10 -9 -8 -7 -7 -7 -7 -6 -6 -6 -6 -6 -6 -5 -5 -------- Run | Yrd Mat Min Exi Min Mat Fac Low Low Zio Pro Fac Was Fac Low Dat Pro Fac Hostile Shots Fired 701 | . 8 . . 99 206 45 10 57 . 32 . . 15 . . 73 156 Missed 253 | . 2 . . 30 61 26 . 19 . 13 . . 2 . . 37 63 Hits 448 | . 6 . . 69 145 19 10 38 . 19 . . 13 . . 36 93 Melee 16 | . . . . 1 . . 5 . . 2 . . . . . . 8 Projectile 432 | . 6 . . 68 145 19 5 38 . 17 . . 13 . . 36 85 Critical Strikes 13 | . . . . . 4 . . 1 . 1 . . 1 . . . 6 Part Disruptions 1 | . . . . . . . . . . . . . . . . . 1 Damage Taken 7789 | . 65 . . 917 2381 377 144 503 . 599 . . 232 . . 589 1982 Core 2217 | . . . . 151 320 146 3 294 . 101 . . 35 . . 158 1009 Absorbed by Shields 168 | . . . . . 168 . . . . . . . . . . . . Redirected to Shielding 8 | . . . . 8 . . . . . . . . . . . . . Regen/Repaired (Parts) 232 | . . . . . . 21 . . 93 . . 98 20 . . . . Core Remaining (%) 55 | 100 . . . 39 41 . . . . 22 . . . . . 77 . Volleys Fired 233 | . 22 . . 42 115 6 . 12 . 16 . . 1 . . 2 17 Largest 2 | . 2 . . 2 2 1 . 1 . 1 . . 1 . . 1 1 Hottest 132 | . 50 . . 100 132 36 . 36 . 36 . . 40 . . . 40 Shots Fired 381 | . 44 . . 72 211 6 . 12 . 16 . . 1 . . 2 17 Gun 240 | . 34 . . 21 185 . . . . . . . . . . . . Cannon 57 | . 10 . . 23 9 . . . . . . . 1 . . . 14 Launcher 69 | . . . . 18 17 6 . 12 . 16 . . . . . . . Special 15 | . . . . 10 . . . . . . . . . . . 2 3 Kinetic 133 | . 44 . . 44 30 . . . . . . . 1 . . . 14 Thermal 163 | . . . . 10 153 . . . . . . . . . . . . Explosive 69 | . . . . 18 17 6 . 12 . 16 . . . . . . . Electromagnetic 11 | . . . . . 11 . . . . . . . . . . . . Robot Hit Streak 13 | . 10 . . 11 13 4 . 12 . 13 . . . . . 6 7 Robot Miss Streak 6 | . 2 . . 2 6 1 . . . 1 . . . . . . 3 Penetration Max . | . . . . . . . . . . . . . . . . . . Secondary Targets 1 | . . . . . 1 . . . . . . . . . . . . Max Gunslinging Chain 1 | . . . . . 1 . . . . . . . . . . . . Shots Hit Robots 237 | . 27 . . 38 133 4 2 10 . 10 . . . . . 2 11 Core Hits 189 | . 10 1 . 24 97 4 . 17 . 32 . . . . . . 4 Critical Kills . | . . . . . . . . . . . . . . . . . . Critical Parts Destroyed 3 | . . . . . . . . . . . . . . . . . 3 Critical Strikes 12 | . 1 . . . 8 . . . . . . . . . . . 3 Burn 7 | . . . . . 7 . . . . . . . . . . . . Destroy 1 | . . . . . . . . . . . . . . . . . 1 Blast 1 | . 1 . . . . . . . . . . . . . . . . Smash 2 | . . . . . . . . . . . . . . . . . 2 Sever 1 | . . . . . 1 . . . . . . . . . . . . Melee Attacks 107 | . . . . . 16 39 5 . . . 3 . 14 . . 4 26 Impact 91 | . . . . . 1 39 5 . . . 3 . 14 . . 4 25 Slashing 15 | . . . . . 15 . . . . . . . . . . . . Piercing . | . . . . . . . . . . . . . . . . . . Sneak Attacks 3 | . . . . . . . . . . . . . . . . . 3 Combat Hostiles . | . . . . . . . . . . . . . . . . . . Follow-up Attacks . | . . . . . . . . . . . . . . . . . . Damage Inflicted 9022 | . 360 20 . 1201 3746 189 82 1048 . 1271 . . . . . . 1105 Guns 2252 | . 217 . . 200 1835 . . . . . . . . . . . . Cannons 730 | . 142 . . 329 122 . . . . . . . . . . . 137 Explosions 5586 | . . . . 664 1696 189 . 1048 . 1271 . . . . . . 718 Melee 405 | . . . . . 93 . 79 . . . . . . . . . 233 Ramming 49 | . 1 20 . 8 . . 3 . . . . . . . . . 17 Kinetic 1343 | . 359 . . 529 318 . . . . . . . . . . . 137 Thermal 2575 | . . . . 96 1761 . . . . . . . . . . . 718 Explosive 4412 | . . . . 568 1336 189 . 1048 . 1271 . . . . . . . Electromagnetic 238 | . . . . . 238 . . . . . . . . . . . . Impact 312 | . . . . . . . 79 . . . . . . . . . 233 Slashing 93 | . . . . . 93 . . . . . . . . . . . . Piercing . | . . . . . . . . . . . . . . . . . . Highest Corruption 6 | . . . . . 2 . . . . . . . . . . . 6 Average Corruption 2 | . . . . . 2 . . . . . . . . . . . 2 Corruption Purged . | . . . . . . . . . . . . . . . . . . Corruption Blocked . | . . . . . . . . . . . . . . . . . . Effects 49 | . . . . . 28 . . . . . . . . . . . 21 Message Errors 11 | . . . . . 4 . . . . . . . . . . . 7 Matter Fused 15 | . . . . . 10 . . . . . . . . . . . 5 Heat Flow Errors 5 | . . . . . 3 . . . . . . . . . . . 2 Energy Discharges 8 | . . . . . 5 . . . . . . . . . . . 3 Parts Rejected 1 | . . . . . . . . . . . . . . . . . 1 Data Loss (minor) 2 | . . . . . . . . . . . . . . . . . 2 Data Loss (major) 2 | . . . . . 1 . . . . . . . . . . . 1 Misfires 2 | . . . . . 2 . . . . . . . . . . . . Alerts 1 | . . . . . 1 . . . . . . . . . . . . Weapon Failures 2 | . . . . . 2 . . . . . . . . . . . . Overload Shots . | . . . . . . . . . . . . . . . . . . Overflow Damage 632 | . . . . 37 91 . . 30 . 19 . . . . . . 455 Projectiles 29 | . . . . 7 . . . . . . . . . . . . 22 Explosions 410 | . . . . 30 91 . . 30 . 19 . . . . . . 240 Melee 193 | . . . . . . . . . . . . . . . . . 193 Knockbacks 14 | . 3 . . 6 3 . . . . . . . . . . . 2 Impact 2 | . . . . . . . . . . . . . . . . . 2 Kinetic 11 | . 3 . . 5 3 . . . . . . . . . . . . Secondary 1 | . . . . 1 . . . . . . . . . . . . . Self-Inflicted Damage 728 | . . . . 105 130 . . 48 . 178 . . . . . . 267 Shots 20 | . . . . 5 4 . . 2 . 6 . . . . . . 3 Rammed 10 | . 1 2 . 1 . . 1 . . . . . . . . . 5 Targets Rammed 10 | . 1 2 . 1 . . 1 . . . . . . . . . 5 Kicked . | . . . . . . . . . . . . . . . . . . Crushed . | . . . . . . . . . . . . . . . . . . Highest Temperature 485 | . 2 . . 64 485 36 . 18 . 2 . . 314 32 46 52 138 Average Temperature 70 | . 2 . . 21 111 14 . 9 . 2 . . 27 16 23 19 27 Received Heat Transfer 1811 | . 36 . . 210 807 21 . 156 . 111 . . 332 . . 42 96 Effects 12 | . . . . . 12 . . . . . . . . . . . . Shutdowns 4 | . . . . . 4 . . . . . . . . . . . . Energy Bleed 2 | . . . . . 2 . . . . . . . . . . . . Interference 4 | . . . . . 4 . . . . . . . . . . . . Damage (minor) 2 | . . . . . 2 . . . . . . . . . . . . Siege Activations . | . . . . . . . . . . . . . . . . . . Martial Activations . | . . . . . . . . . . . . . . . . . . Shielding Activations . | . . . . . . . . . . . . . . . . . . Robots Disrupted . | . . . . . . . . . . . . . . . . . . Combat Hostiles . | . . . . . . . . . . . . . . . . . . Robots Corrupted 2 | . . . . . . . . . . . . . . . . . 2 Combat Hostiles . | . . . . . . . . . . . . . . . . . . Parts Fried 6 | . . . . . 1 . . . . . . . . . . . 5 Impact Corruptions 7 | . . . . . . . . . . . . . . . . . 7 Robots Melted . | . . . . . . . . . . . . . . . . . . Combat Hostiles . | . . . . . . . . . . . . . . . . . . Parts Melted 8 | . . . . . 8 . . . . . . . . . . . . Heat Transferred 4735 | . . . . 100 4185 . . . . . . . . . . . 450 Parts Sabotaged 4 | . . . . . . . . . . . . . . . . . 4 Parts Stolen 1 | . . . . . . . 1 . . . . . . . . . . Parts Stripped . | . . . . . . . . . . . . . . . . . . Power Chain Reactions 3 | . . . . . 3 . . . . . . . . . . . . Alert | -11 -10 -10 -10 -9 -8 -7 -7 -7 -7 -6 -6 -6 -6 -6 -6 -5 -5 ------- Run | Yrd Mat Min Exi Min Mat Fac Low Low Zio Pro Fac Was Fac Low Dat Pro Fac Maximum Alert Level 3 | . . . . . 2 1 . . . . . . 3 . . . 1 Low Security (%) 79 | 100 100 100 . 100 69 67 . . . . 100 100 29 . . . 89 Level 1 7 | . . . . . 5 32 . . . . . . 7 . . . 10 Level 2 11 | . . . . . 24 . . . . . . . 51 . . . . Level 3 . | . . . . . . . . . . . . . 11 . . . . Level 4 . | . . . . . . . . . . . . . . . . . . Level 5 . | . . . . . . . . . . . . . . . . . . High Security . | . . . . . . . . . . . . . . . . . . Max Security . | . . . . . . . . . . . . . . . . . . Peak Influence 811 | . 64 5 . 108 657 293 . . . . 1 . 811 . . . 326 Initial 293 | . . . . . 39 293 . . . . . . . . . . . Average 116 | . 6 . . 19 190 137 . . . . . . 400 . . . 43 Influence Increases 5253 | . 105 5 . 440 1352 655 . 160 . 195 2 . 1455 . . 244 640 Destroy 0b10 Robot/C 2020 | . 60 . . 280 700 20 . 140 . 180 . . 520 . . 40 80 Destroy 0b10 Robot/NC 185 | . 20 5 . 10 90 . . . . 5 . . 30 . . . 25 Destroy Leader 402 | . 16 . . 30 184 10 . 20 . 10 . . 112 . . 20 . Allied During Kill 629 | . . . . . . . . . . . . . 621 . . 4 4 Successful Hack 107 | . 8 . . . 25 44 . . . . . . 20 . . . 10 Disable Machine 300 | . . . . 30 105 . . . . . . . 45 . . . 120 Destroy Structure 500 | . 1 . . 90 128 71 . . . . 2 . 62 . . . 146 Partial Spotted 45 | . . . . . . 45 . . . . . . . . . . . Lose Combat Pursuer 1065 | . . . . . 120 465 . . . . . . 45 . . 180 255 Influence Decreases 4937 | . 105 5 . 340 806 1188 113 150 10 195 2 . 845 236 374 244 324 Entered New Map 1066 | . . . . . 61 353 42 . 10 . . . . 226 374 . . Time Decay 2502 | . 105 5 . 320 575 516 61 90 . 155 2 . 315 10 . 174 174 Search Patrol Dispatched 100 | . . . . . . 100 . . . . . . . . . . . Lost Part 520 | . . . . 20 170 50 10 60 . 40 . . 10 . . 50 110 Lost Ally 280 | . . . . . . . . . . . . . 220 . . 20 40 Purge Threat 469 | . . . . . . 169 . . . . . . 300 . . . . Squads Dispatched 45 | . 3 . . . 4 12 . 1 . 1 . . 16 . . . 8 Investigation 11 | . 2 . . . . 4 . . . . . . 4 . . . 1 Extermination 12 | . . . . . . 5 . . . . . . 3 . . . 4 Reinforcement 13 | . 1 . . . 4 3 . . . . . . 2 . . . 3 Assault 3 | . . . . . . . . 1 . 1 . . 1 . . . . Garrison 6 | . . . . . . . . . . . . . 6 . . . . Intercept . | . . . . . . . . . . . . . . . . . . Searches Triggered 1 | . . . . . . 1 . . . . . . . . . . . Construction Impeded 2 | . . . . . 1 . . . . . . . 1 . . . . Haulers Reinforced 2 | . . . . . . . . . . . . . 1 . . . 1 Active Scanning Responses . | . . . . . . . . . . . . . . . . . . Cargo Convoy Interrupts 1 | . . . . . . . . . . . . . . . . . 1 Stealth | -11 -10 -10 -10 -9 -8 -7 -7 -7 -7 -6 -6 -6 -6 -6 -6 -5 -5 --------- Run | Yrd Mat Min Exi Min Mat Fac Low Low Zio Pro Fac Was Fac Low Dat Pro Fac Distress Signals 12 | . 1 . . . 2 2 . . . . . . 3 . . . 4 Communications Jammed 9 | . . . . . . . . . . . . . . . . . 9 Distress Signals 9 | . . . . . . . . . . . . . . . . . 9 Times Spotted 229 | . 11 . . 16 56 33 5 16 . 10 . . 13 . . 15 54 Peak Tracking Total 31 | . 3 . . 4 6 7 4 7 . 5 . . 6 . . 7 31 Tactical Retreats 29 | . . . . . 5 12 . 1 . . . . 2 . . 3 6 ECM-based Alert Blocks 2 | . . . . . . . . 2 . . . . . . . . . Traps | -11 -10 -10 -10 -9 -8 -7 -7 -7 -7 -6 -6 -6 -6 -6 -6 -5 -5 ------- Run | Yrd Mat Min Exi Min Mat Fac Low Low Zio Pro Fac Was Fac Low Dat Pro Fac Traps Triggered 8 | . 1 . . . 1 4 . . . . 1 . 1 . . . . Indirectly . | . . . . . . . . . . . . . . . . . . Trap Hack Attempts . | . . . . . . . . . . . . . . . . . . Triggered . | . . . . . . . . . . . . . . . . . . Disarmed . | . . . . . . . . . . . . . . . . . . Reprogrammed . | . . . . . . . . . . . . . . . . . . Reused . | . . . . . . . . . . . . . . . . . . Traps Extracted . | . . . . . . . . . . . . . . . . . . Installed . | . . . . . . . . . . . . . . . . . . Triggered . | . . . . . . . . . . . . . . . . . . Machines | -11 -10 -10 -10 -9 -8 -7 -7 -7 -7 -6 -6 -6 -6 -6 -6 -5 -5 ---------- Run | Yrd Mat Min Exi Min Mat Fac Low Low Zio Pro Fac Was Fac Low Dat Pro Fac Machines Disabled 20 | . . . . 2 7 . . . . . . . 3 . . . 8 Max in Single Turn 5 | . . . . 2 2 . . . . . . . . . . . 5 Garrison Access 2 | . . . . . . 1 . . . . 1 . . . . . . Machines Repaired . | . . . . . . . . . . . . . . . . . . Machines Dismantled . | . . . . . . . . . . . . . . . . . . Machines Sabotaged . | . . . . . . . . . . . . . . . . . . Overloaded Fab Kills . | . . . . . . . . . . . . . . . . . . Hacking | -11 -10 -10 -10 -9 -8 -7 -7 -7 -7 -6 -6 -6 -6 -6 -6 -5 -5 --------- Run | Yrd Mat Min Exi Min Mat Fac Low Low Zio Pro Fac Was Fac Low Dat Pro Fac Machines Accessed 51 | . 3 . 4 1 10 17 . . . . 1 . 7 . 4 . 4 Terminals 28 | . 3 . . 1 8 11 . . . . . . 3 . . . 2 Fabricators 4 | . . . . . . 1 . . . . . . 3 . . . . Repair Stations 1 | . . . . . . 1 . . . . . . . . . . . Recycling Units 3 | . . . . . 1 1 . . . . . . . . . . 1 Scanalyzers 4 | . . . . . 1 2 . . . . . . 1 . . . . Garrison Access 3 | . . . . . . 1 . . . . 1 . . . . . 1 Total Hacks 200 | . 6 . 28 2 20 68 . . . . 1 . 27 . 30 . 18 Successful 133 | . 2 . 28 . 9 34 . . . . 1 . 19 . 30 . 10 Failed 66 | . 4 . . 2 10 34 . . . . . . 8 . . . 8 Catastrophic 11 | . . . . 1 2 5 . . . . . . 1 . . . 2 Database Lockouts 1 | . . . . . 1 . . . . . . . . . . . . Manual 32 | . . . 1 . 2 17 . . . . . . 11 . . . 1 Terminals 99 | . 6 . . 2 12 53 . . . . . . 15 . . . 11 Fabricators 10 | . . . . . . 1 . . . . . . 9 . . . . Repair Stations 2 | . . . . . . 2 . . . . . . . . . . . Recycling Units 11 | . . . . . 4 2 . . . . . . . . . . 5 Scanalyzers 16 | . . . . . 4 9 . . . . . . 3 . . . . Garrison Access 4 | . . . . . . 1 . . . . 1 . . . . . 2 Terminal Hacks 104 | . 2 . 28 . 5 23 . . . . . . 9 . 30 . 7 Record 48 | . . . 27 . . 7 . . . . . . . . 11 . 3 Part Schematic 10 | . . . . . . . . . . . . . 1 . 9 . . Robot Schematic 7 | . . . . . . . . . . . . . . . 7 . . Robot Analysis 1 | . . . . . . 1 . . . . . . . . . . . Prototype ID Bank 6 | . . . . . . 3 . . . . . . . . 3 . . Level Access Points 1 | . 1 . . . . . . . . . . . . . . . . Branch Access Points 1 | . . . . . . 1 . . . . . . . . . . . Terminal Index 1 | . . . . . . . . . . . . . 1 . . . . Fabricator Index 2 | . . . . . . 1 . . . . . . 1 . . . . Alert Level 4 | . . . . . . 1 . . . . . . 2 . . . 1 Unreport Threat 4 | . . . . . . 2 . . . . . . 2 . . . . Locate Traps 7 | . . . . . 2 3 . . . . . . . . . . 2 Security Status 1 | . . . . . . 1 . . . . . . . . . . . Reinforcement Status 1 | . . . . . . 1 . . . . . . . . . . . Recall Investigation 1 | . . . . . . . . . . . . . 1 . . . . Hauler Manifests 3 | . . . . . 2 . . . . . . . 1 . . . . Registered Components 1 | . . . . . 1 . . . . . . . . . . . . Registered Prototypes 2 | . . . . . . 1 . . . . . . . . . . 1 Zone Layout 2 | . 1 . . . . 1 . . . . . . . . . . . Proto ID Catalog 1 | . . . 1 . . . . . . . . . . . . . . Fabricator Hacks 8 | . . . . . . 1 . . . . . . 7 . . . . Network Status 1 | . . . . . . 1 . . . . . . . . . . . Load Schematic 4 | . . . . . . . . . . . . . 4 . . . . Build 3 | . . . . . . . . . . . . . 3 . . . . Repair Station Hacks 2 | . . . . . . 2 . . . . . . . . . . . Scan Component 1 | . . . . . . 1 . . . . . . . . . . . Repair 1 | . . . . . . 1 . . . . . . . . . . . Recycling Unit Hacks 7 | . . . . . 2 2 . . . . . . . . . . 3 Process 2 | . . . . . . 1 . . . . . . . . . . 1 Report Inventory 2 | . . . . . 1 . . . . . . . . . . . 1 Retrieve Matter 2 | . . . . . . 1 . . . . . . . . . . 1 Retrieve Components 1 | . . . . . 1 . . . . . . . . . . . . Scanalyzer 10 | . . . . . 2 5 . . . . . . 3 . . . . Retrieve Study 10 | . . . . . 2 5 . . . . . . 3 . . . . Garrison Access Hacks 2 | . . . . . . 1 . . . . 1 . . . . . . Seal Access 2 | . . . . . . 1 . . . . 1 . . . . . . Unauthorized Hacks . | . . . . . . . . . . . . . . . . . . Terminals . | . . . . . . . . . . . . . . . . . . Fabricators . | . . . . . . . . . . . . . . . . . . Repair Stations . | . . . . . . . . . . . . . . . . . . Recycling Units . | . . . . . . . . . . . . . . . . . . Scanalyzers . | . . . . . . . . . . . . . . . . . . Garrison Access . | . . . . . . . . . . . . . . . . . . Data Cores Recovered . | . . . . . . . . . . . . . . . . . . Used . | . . . . . . . . . . . . . . . . . . Hacking Detections 27 | . 1 . . 1 5 11 . . . . . . 5 . . . 4 Full Trace Events 9 | . 1 . . 1 . 2 . . . . . . 4 . . . 1 Feedback Events . | . . . . . . . . . . . . . . . . . . Feedback Blocked . | . . . . . . . . . . . . . . . . . . Robot Schematics Acquired 9 | . . . . . . . . . 2 . . . . . 7 . . Robots Built . | . . . . . . . . . . . . . . . . . . Authchips . | . . . . . . . . . . . . . . . . . . Time . | . . . . . . . . . . . . . . . . . . Total Robot Build Rating . | . . . . . . . . . . . . . . . . . . Part Schematics Acquired 25 | . . . . . . . . . 15 . . . 1 . 9 . . Parts Built 4 | . . . . . . . . . . . . . 4 . . . . Authchips . | . . . . . . . . . . . . . . . . . . Time 233 | . . . . . . . . . . . . . 233 . . . . Total Part Build Rating 28 | . . . . . . . . . . . . . 28 . . . . Part Studies Acquired 10 | . . . . . 2 5 . . . . . . 3 . . . . Parts Repaired 1 | . . . . . . 1 . . . . . . . . . . . Time 38 | . . . . . . 38 . . . . . . . . . . . Parts Recycled . | . . . . . . . . . . . . . . . . . . Recycled Matter 421 | . . . . . . 403 . . . . . . . . . . 18 Retrieved Matter 421 | . . . . . . 403 . . . . . . . . . . 18 Retrieved Components 9 | . . . . . 9 . . . . . . . . . . . . Parts Scanalyzed . | . . . . . . . . . . . . . . . . . . Part Schematics Acquired . | . . . . . . . . . . . . . . . . . . Parts Damaged . | . . . . . . . . . . . . . . . . . . Bothacking | -11 -10 -10 -10 -9 -8 -7 -7 -7 -7 -6 -6 -6 -6 -6 -6 -5 -5 ------------ Run | Yrd Mat Min Exi Min Mat Fac Low Low Zio Pro Fac Was Fac Low Dat Pro Fac Used RIF Installer . | . . . . . . . . . . . . . . . . . . Robots Hacked 1 | . . . . . . . . . . . . . . . . . 1 Non-combat 1 | . . . . . . . . . . . . . . . . . 1 Combat . | . . . . . . . . . . . . . . . . . . Robot Hacks Applied 1 | . . . . . . . . . . . . . . . . . 1 parse_system 1 | . . . . . . . . . . . . . . . . . 1 Relay Couplers Released . | . . . . . . . . . . . . . . . . . . Fabnet Peak Effective % . | . . . . . . . . . . . . . . . . . . Robots Rewired . | . . . . . . . . . . . . . . . . . . Allies Hacked . | . . . . . . . . . . . . . . . . . . Hacks Repelled 1 | . . . . . . . . . . . . . 1 . . . . Allies | -11 -10 -10 -10 -9 -8 -7 -7 -7 -7 -6 -6 -6 -6 -6 -6 -5 -5 -------- Run | Yrd Mat Min Exi Min Mat Fac Low Low Zio Pro Fac Was Fac Low Dat Pro Fac Total Allies 26 | . . . . 1 . . . . . . . 20 . . . 2 3 Largest Group 20 | . . . . 1 . . . . . . . 20 20 . . 1 1 Highest-Rated Group 753 | . . . . 31 . . . . . . . 753 753 . . 85 54 Highest-Rated Ally 85 | . . . . 31 . . . . . . . 50 50 . . 85 54 Total Orders 2 | . . . . . . . . . . . . . . . . 2 . EXPLORE 2 | . . . . . . . . . . . . . . . . 2 . Ally Attacks 180 | . . . . . . . . . . . . . 129 . . 7 44 Total Damage 5159 | . . . . . . . . . . . . . 4332 . . 213 614 Kills 38 | . . . . . . . . . . . . . 35 . . 2 1 Allies Corrupted 1 | . . . . . . . . . . . . . . . . . 1 Allies Melted 2 | . . . . . . . . . . . . . 1 . . . 1 Field Lobotomies 5 | . . . . . . . . . . . . . . . . 2 3 Intel | -11 -10 -10 -10 -9 -8 -7 -7 -7 -7 -6 -6 -6 -6 -6 -6 -5 -5 ------- Run | Yrd Mat Min Exi Min Mat Fac Low Low Zio Pro Fac Was Fac Low Dat Pro Fac Active Infowar (turns) 9847 | . . . . . 3559 1628 283 156 . . 308 457 834 24 27 612 1959 Structural 9712 | . . . . . 3559 1628 263 79 . . 308 457 834 24 27 576 1957 Jamming 1218 | . . . . . . . . . . . . . . . . 332 886 ECM 135 | . . . . . . . 20 77 . . . . . . . 38 . Robot Analysis Total 1 | . . . . . . 1 . . . . . . . . . . . Derelict Logs Recovered 9 | . . 2 . 1 . . 1 1 1 1 . . . 1 . 1 . Drone Launches 3 | . . . . . . . . . . . . . . . . 3 . Drone Recoveries 2 | . . . . . . . . . . . . . . . . 2 . Exploration | -11 -10 -10 -10 -9 -8 -7 -7 -7 -7 -6 -6 -6 -6 -6 -6 -5 -5 ------------- Run | Yrd Mat Min Exi Min Mat Fac Low Low Zio Pro Fac Was Fac Low Dat Pro Fac Turns Passed 18494 | 65 1209 1051 1564 1789 4239 1637 283 225 1254 407 310 457 1167 24 27 767 2019 Spaces Moved 11460 | 38 520 429 652 612 1539 2322 250 252 988 269 227 292 904 64 86 1119 897 Core 462 | 14 . . . . . . . 189 186 . . . . . . . 73 Treads 4254 | 24 520 429 652 612 1253 . 23 63 . . . . . . . 132 546 Legs 2262 | . . . . . 286 . . . 802 269 227 292 386 . . . . Wheels . | . . . . . . . . . . . . . . . . . . Hover 228 | . . . . . . . . . . . . . . . . . 228 Flight 4254 | . . . . . . 2322 227 . . . . . 518 64 86 987 50 Fastest Speed 23 | 50 160 240 240 240 122 23 26 50 50 126 127 127 26 31 31 28 29 Average Speed 122 | 139 206 240 240 240 168 27 102 77 122 132 127 127 70 31 31 58 180 Slowest Speed 850 | 200 240 240 240 240 400 98 195 160 140 140 127 127 199 31 31 240 850 Overloaded Moves 312 | . . . . . . 256 7 . . . . . . . . . 49 Propulsion Burnouts . | . . . . . . . . . . . . . . . . . . Robots Hopped 1 | . . . . . . . . . . . . . . . . . 1 Potential Cave-ins . | . . . . . . . . . . . . . . . . . . Cave-ins Triggered . | . . . . . . . . . . . . . . . . . . Exploration Rate (%) 57 | 3 64 90 92 90 88 48 49 51 85 54 7 96 16 10 71 92 24 Regions Visited 17 Branch Regions 10 Pre-discovered Areas 6 | . . 1 1 1 . . . . 1 . . . . . 1 1 . Known Exits Taken 3 | . . . . . . 1 . . . . . . 1 . . 1 . Unknown Exits Taken 12 | 1 1 1 1 1 1 . 1 1 1 1 . . . 1 1 . . Scrap Searched 11 | . . 1 . 2 . . . . 3 1 . . . . . 4 . Spaces Dug 91 | . . . . . 11 39 . . . . 2 . 14 . . 4 21 Terrain Destroyed 627 | . . . . 124 134 73 . 63 . 109 2 . 14 . . 4 104 Melee 91 | . . . . . 11 39 . . . . 2 . 14 . . 4 21 Projectile 9 | . . . . 1 . . . . . . . . . . . . 8 AOE 527 | . . . . 123 123 34 . 63 . 109 . . . . . . 75 Terrain Rammed . | . . . . . . . . . . . . . . . . . . Walls Destroyed . | . . . . . . . . . . . . . . . . . . Machines Disabled . | . . . . . . . . . . . . . . . . . . Actions | -11 -10 -10 -10 -9 -8 -7 -7 -7 -7 -6 -6 -6 -6 -6 -6 -5 -5 --------- Run | Yrd Mat Min Exi Min Mat Fac Low Low Zio Pro Fac Was Fac Low Dat Pro Fac Total 15279 | 47 613 448 653 832 2948 3240 263 266 1027 299 244 377 1412 67 85 1225 1233 Wait 3014 | . 48 14 . 145 1116 817 . . 23 . 7 76 450 3 . 60 255 Move 11443 | 37 519 428 651 611 1538 2321 250 251 987 268 227 291 903 63 85 1118 895 Hop 1 | . . . . . . . . . . . . . . . . . 1 Pick Up 131 | 4 17 1 1 6 53 12 1 . 6 4 2 3 10 . . 6 5 Fast Attach 48 | 6 . . . 2 8 2 1 . 7 6 . 1 6 . . 4 5 Attach 68 | . 1 . . 2 22 12 1 1 1 3 3 . 3 1 . 10 8 Detach 17 | . . . . . 1 3 . 1 . . . . 4 . . 3 5 Swap 110 | . 4 2 . 18 40 13 5 1 . . 1 3 6 . . 9 8 Drop 97 | . 1 1 1 5 39 15 . . 3 2 1 3 15 . . 8 3 Fire 233 | . 22 . . 42 115 6 . 12 . 16 . . 1 . . 2 17 Melee 107 | . . . . . 16 39 5 . . . 3 . 14 . . 4 26 Ram 5 | . . . . . . . . . . . . . . . . . 5 Kick . | . . . . . . . . . . . . . . . . . . Crush 4 | . 1 2 . 1 . . . . . . . . . . . . . Escape Stasis . | . . . . . . . . . . . . . . . . . . Rewire 1 | . . . . . . . . . . . . . . . . 1 . Trap . | . . . . . . . . . . . . . . . . . . Miscellaneous . | . . . . . . . . . . . . . . . . . . Route ------- -11/Scrapyard -10/Materials (discovered 4 exits: *Mat x3 / [*Min]) -10/Mines (discovered 3 exits: *Mat x2 / *Exi) -10/Exiles (discovered 2 exits: *Min x2) -9/Mines (discovered 2 exits: *Mat x2) -8/Materials (discovered 5 exits: *Fac x3 / [*Sto x2]) -7/Factory (discovered 3 exits: *Fac / *Low x2) -7/Lower Caves -7/Lower Caves -7/Zion -6/Proximity Caves -6/Factory -6/Waste -6/Factory (discovered 2 exits: *Low x2) -6/Lower Caves (discovered 2 exits: Low / *Dat) -6/Data Miner -5/Proximity Caves -5/Factory (discovered 1 exit: *Upp) History --------- Turn | Location | Event 22 | -11/Scrapyard | Discovered new exit (range 16) 66 | -11/Scrapyard | Entered Materials 67 | -10/Materials | Met a group of wandering Federalists 302 | -10/Materials | Build established: Mutant 386 | -10/Materials | Discovered new exit (range 11) 500 | -10/Materials | Identified exit to Materials 1275 | -10/Materials | Entered Mines 1418 | -10/Mines | Discovered exit to Materials (range 13) 1437 | -10/Mines | Received a Rocket Launcher from a helpful Derelict 1710 | -10/Mines | Learned Materials terminal intel 1734 | -10/Mines | Discovered exit to Materials (range 11) 2316 | -10/Mines | Deemed a non-threat by the Exiles lab entrance 2316 | -10/Mines | Discovered new exit (range 5) 2326 | -10/Mines | Entered Exiles 2384 | -10/Exiles | Discovered new exit (range 15) 2434 | -10/Exiles | Met 8R-AWN 2490 | -10/Exiles | Met EX-HEX 2607 | -10/Exiles | Met EX-DEC 2761 | -10/Exiles | Discovered new exit (range 14) 2984 | -10/Exiles | Learned location of Zion (-7) 3042 | -10/Exiles | Met EX-BIN 3078 | -10/Exiles | Aligned with FarCom system 3080 | -10/Exiles | Given EX-Vault access code 3142 | -10/Exiles | Opened EX-Vault 3160 | -10/Exiles | Found Field Lobotomy Kit 3262 | -10/Exiles | Warned to stay clear of 0b10 Research branches 3440 | -10/Exiles | Visited The Gauntlet 3890 | -10/Exiles | Left Exiles lab with Field Lobotomy Kit 3890 | -10/Exiles | Entered Mines 4154 | -9/Mines | Received a Mining Laser from a helpful Derelict 4485 | -9/Mines | Excavation squad dispatched 4485 | -9/Mines | A large section of the Mines collapsed 4791 | -9/Mines | Discovered new exit (range 5) 5368 | -9/Mines | Core integrity fell below 50% 5635 | -9/Mines | Discovered new exit (range 8) 5679 | -9/Mines | Entered Materials 5679 | -8/Materials | Evolved 4 slots: Power x1, Propulsion x2, Utility x1 5680 | -8/Materials | Loaded intel: 12 terminal locations 6240 | -8/Materials | Build established: Scavenger-Mutant 6746 | -8/Materials | Discovered new exit (range 5) 6906 | -8/Materials | Discovered new exit (range 13) 8140 | -8/Materials | Discovered new exit (range 16) 8187 | -8/Materials | Discovered new exit (range 7) 8789 | -8/Materials | Lost 4 parts (1p2n1u) 9277 | -8/Materials | Discovered new exit (range 4) 9367 | -8/Materials | Core integrity fell below 50% 9394 | -8/Materials | Lost 3 parts (1p1n1u) 9718 | -8/Materials | Central database locked down 9918 | -8/Materials | Entered Factory 9918 | -7/Factory | Evolved 2 slots: Utility x2 10000 | -7/Factory | Repaired Lgt. Nuclear Core 10215 | -7/Factory | Build established: Hacker-Sprinter 10264 | -7/Factory | Discovered new exit (range 13) 10506 | -7/Factory | Identified exit to Lower Caves 11143 | -7/Factory | Discovered new exit (range 10) 11518 | -7/Factory | Search patrols dispatched 11555 | -7/Factory | Entered Lower Caves 11573 | -7/Lower Caves | Lost 3 parts (1p2n) 11830 | -7/Lower Caves | Discovered new exit (range 5) 11838 | -7/Lower Caves | Entered another Lower Caves area 11840 | -7/Lower Caves | Attracted the attention of an 0b10 checkpoint 11875 | -7/Lower Caves | Build established: Hacker-Mutant 11979 | -7/Lower Caves | Learned Factory stockpile data 11999 | -7/Lower Caves | Lost 6 parts (2p2n1u1w) 12044 | -7/Lower Caves | Attracted the attention of an 0b10 outpost 12046 | -7/Lower Caves | Core integrity fell below 50% 12056 | -7/Lower Caves | Discovered new exit (range 15) 12063 | -7/Lower Caves | Entered Zion 12141 | -7/Zion | Learned Factory emergency access door positions 12445 | -7/Zion | Learned location of Armory (-3) 12477 | -7/Zion | Found Prototype Launcher 12477 | -7/Zion | Identified Rocket Array 12720 | -7/Zion | Visited the Megawrench Repair Shop 12720 | -7/Zion | Megawrench repaired 3 parts 12966 | -7/Zion | Rebuked by Imprinter 13293 | -7/Zion | Discovered new exit (range 15) 13317 | -7/Zion | Entered Proximity Caves 13388 | -6/Proximity Caves | Attracted the attention of an 0b10 outpost 13539 | -6/Proximity Caves | Lost 3 parts (1n2w) 13553 | -6/Proximity Caves | Learned Factory security intel 13679 | -6/Proximity Caves | Discovered new exit (range 14) 13694 | -6/Proximity Caves | Found DCF Scrap (15 items) 13724 | -6/Proximity Caves | Entered Factory 13724 | -6/Factory | Evolved 2 slots: Utility x2 14034 | -6/Factory | Sucked down chute 14034 | -6/Factory | Entered Waste 14035 | -6/Waste | Joined by Warlord forces that had cleared the area 14327 | -6/Waste | Discovered new exit (range 12) 14491 | -6/Waste | Entered Factory 14491 | -6/Factory | Accompanied by 20 allies 14857 | -6/Factory | Garrison activated, responded to threat 15016 | -6/Factory | Spotted B-75 Beast 15133 | -6/Factory | Discovered new exit (range 15) 15165 | -6/Factory | Identified exit to Lower Caves 15209 | -6/Factory | Garrison activated, responded to threat 15241 | -6/Factory | Fabricated Impulse Thruster (x2) 15269 | -6/Factory | Lost 5 allies 15422 | -6/Factory | Discovered exit to Lower Caves (range 7) 15446 | -6/Factory | Build established: Hacker-Sprinter 15460 | -6/Factory | Fabricated Impulse Thruster? 15516 | -6/Factory | Lost 9 allies 15541 | -6/Factory | First assault squad dispatched 15658 | -6/Factory | Entered Lower Caves 15673 | -6/Lower Caves | Identified exit to Lower Caves 15680 | -6/Lower Caves | A Derelict revealed a hidden shortcut to meet someone special 15682 | -6/Lower Caves | Entered Data Miner 15682 | -6/Data Miner | Discovered new exit (range 6) 15688 | -6/Data Miner | Met Data Miner 15696 | -6/Data Miner | Learned location of Section 7 (-3) 15696 | -6/Data Miner | Acquired the access code to Warlord's prototype stash 15702 | -6/Data Miner | Received God Mode back door access code from Data Miner 15709 | -6/Data Miner | Entered Proximity Caves 15883 | -5/Proximity Caves | Spotted B-75 Beast 16069 | -5/Proximity Caves | Assimilated B-75 Beast with FLK Orb 16100 | -5/Proximity Caves | Lost 4 parts (1p3n) 16105 | -5/Proximity Caves | Assimilated H-66 Slayer with FLK Orb 16438 | -5/Proximity Caves | Discovered new exit (range 15) 16475 | -5/Proximity Caves | Identified exit to Factory 16476 | -5/Proximity Caves | Entered Factory 16476 | -5/Factory | Accompanied by 1 ally 16476 | -5/Factory | Evolved 2 slots: Propulsion x1, Utility x1 16668 | -5/Factory | Build established: Derelict-Mutant 16836 | -5/Factory | Discovered new exit (range 9) 16855 | -5/Factory | Identified exit to Upper Caves 17053 | -5/Factory | Assimilated P-70 Sage with FLK Orb 17253 | -5/Factory | Build established: Hacker-Mutant 18101 | -5/Factory | Assimilated G-50 Soldier with FLK Orb 18283 | -5/Factory | Assimilated P-70 Sage with FLK Orb 18432 | -5/Factory | Cargo convoy interrupted 18459 | -5/Factory | Core integrity fell below 50% 18485 | -5/Factory | Core integrity fell below 20% 18489 | -5/Factory | Lost 8 parts (1p2n5u) 18495 | -5/Factory | Destroyed by P-70 Sage with Tesla Rifle Last Messages --------------- 18458_ Penetrated by Slug. 18458_ Slug penetrates K-01 Serf. 18458_ K-01 Serf destroyed. 18461_ K-01 Serf collects debris. 18463_ System corrupted: Matter fused (-8). 18472_ Slug penetrates Wall. 18472_ Penetrated by Slug. 18479_ Connecting with Garrison Access... 18479_ ALERT: Suspicious activity at Garrison Access F001. Dispatching Investigation squad. 18480_ Slug penetrates Garrison Access. 18482_ ALERT: Suspicious intruders detected, dispatching Cutter reinforcements to area. 18487_ ALERT: Potential suspicious activity detected, Programmers report to Factory Zone 4R. 18490_ VTOL Module+ destroyed. 18491_ Adv. Signal Interpreter severed. 18491_ Slammed into C-35 Carver. [Achievement: 10k Club] Map ----- +----------------------------------------------------+ | ?????????????????????????"" #??????? ????? | | ??????????????????????? """ #??????? ????? | | ????????????????????????""" ! #???????#/#+#??? | | ???????????????????????? ! #???????# #?## | | ???????[?????????????# """ [ #???????# #?# | | ?????????????????????# """ #???????# #?# | | ?????????????????????# """ " #???????# #?# | | ?????????????????????# "" ######### ### | | ?????????????????????# """ h G # | | ?????????????????????# """ "" # | | ?????????????????????# """ " + | | ?????????????????????#p # | | ?????????????????????# # | | ??????????????????######+#k##########+######+#### | | ??????????????????# # ?? h ?? ?# | | ??????????????????# +?p # ## | | ??????????????????#! p# # ## | | ??????????????????# h # # | ### | | ??????????????????# """ # # ! #?? | | ??????????????????# """"" p # # #?? | | ??????????????????# """"" # # = #?? | | ??????????????????# # # #?? | | ??????????????????# """p ] ########### !#?? | | ??????????????????# """""s [ #?????????# #?? | | ??????????????????#c"""""s #?????????# #?? | | ??????????????????# sccs @c #?????????# #?? | | ??????????????????##############?????????#######?? | | ????????????????????????????????????????????###### | | ????????????????????????????????????????????###### | | ????????????????????????????????????????????## | | ????????????????????????????????????????????## | | ????????????????????????????????????????????## | | ????????????????????????????????????????????## | | ????????????????????????????????????????????## | | ????????????????????????????????????????????## | | ????????????????????????????????????????????## | | ????????????????????????????????????????????## | | ???????????????????????????????############### | | ???????????????????????????????############### | | ???????????????????????????????## / | | ???????????????????????????????## # | | ???????????????????????????????## ##### | | ???????????????????????????????## """ """ ##### | | ???????????????????????????????## """ """ ##??? | | ???????????????????????????????## """ """ + ??? | | ???????????????????????????????## "" ##??? | | ???????????????????????????????## """ """ ""##??? | | ???????????????????????????????## """ """ S"##??? | | ???????????????????????????????## """ """ ""##??? | | ???????????????????????????????## """##??? | +----------------------------------------------------+ Best States ------------- Heat Dissipation 45 Energy Generation 34 Energy Capacity 525 Matter Stores 300 Matter Capacity 450 Sight Range 16 Terrain Scan Density 10 ECM Strength 2 Jamming Range 14 Base Temperature (-) 100 Armor Coverage 225 Utility Shielding 33 Phase Shifting 5 Evasion (%) 70 Recoil Reduction 4 Offensive Hacking 39 Defensive Hacking 20 Item Schematics ----------------- Magnetic Acceleration Cannon | -7/Zion | Archive Imp. Deuterium Engine | -7/Zion | Archive Imp. Recalibrator | -7/Zion | Archive Imp. Shock Absorption System | -7/Zion | Archive Hvy. Ion Cannon | -7/Zion | Archive Lgt. Fission Core | -7/Zion | Archive Recalibrator | -7/Zion | Archive Thermal Shield | -7/Zion | Archive Drone Bay | -7/Zion | Archive Gatling Laser | -7/Zion | Archive EM Disruption Field | -7/Zion | Archive Arm. Leg | -7/Zion | Archive Hrd. Heavy Armor Plating | -7/Zion | Archive Matter Compressor | -7/Zion | Archive Energy Filter | -7/Zion | Archive Impulse Thruster | -6/Factory | Hacked Combat Drone Bay | -6/Data Miner | Free Lgt. Regenerative Plating | -6/Data Miner | Free Enh. Armored Leg | -6/Data Miner | Free Imp. Matter Compressor | -6/Data Miner | Free Hvy. Gatling Laser | -6/Data Miner | Free Myomer Leg | -6/Data Miner | Free Nanoactuators | -6/Data Miner | Free Hardcell Cannon | -6/Data Miner | Free Adv. Component Analysis Suite | -6/Data Miner | Free Robot Schematics ------------------ T-07 Excavator | -7/Zion | Archive L-41 Fighter | -7/Zion | Archive H-66 Slayer | -6/Data Miner | Free S-27 Virus | -6/Data Miner | Free R-10 Processor | -6/Data Miner | Free B-48 Gladiator | -6/Data Miner | Free O-32 Director | -6/Data Miner | Free E-15 Imp | -6/Data Miner | Free B-60 Warrior | -6/Data Miner | Free Fabricated ------------ Impulse Thruster | x2 | -6/Factory Impulse Thruster | x2 | -6/Factory Repaired ---------- Lgt. Nuclear Core | 58% | -7/Factory Studied --------- Cesium-ion Thruster | -8/Materials | Hacked Flight Unit | -8/Materials | Hacked Missile Launcher | -7/Factory | Hacked Lgt. Angular Momentum Engine | -7/Factory | Hacked Great Maul | -7/Factory | Hacked Lgt. Nuclear Core | -7/Factory | Hacked VTOL Module | -7/Factory | Hacked Lgt. Fission Core | -6/Factory | Hacked Powered Hammer | -6/Factory | Hacked Imp. Titanium Leg | -6/Factory | Hacked Alien Tech Used ----------------- None Achievements -------------- 10k Club Can't Catch Me Dramatic Entrance Explorer Hackathon Hunted I'm Back, Baby! Jackpot Just What I Needed Leap Before You Look Part-time Excavator Sixth Sense Suspicious The Oracle Throw Away The Key We Are Legion Challenges ------------ None Game ------ Seed GravjetLightpackBooster Manual? 0 Play Time 06:17:34 Cumulative 22.7 hours Start 2026.08.14 @ 16:11:59 End 2026.08.15 @ 20:53:48 Sessions 3 Manual Loads 0 Difficulty Rogue Special Mode None Game No. 17 Rogue 17 Adventurer 0 Explorer 0 Win Type - Total 0 Types 0/0/0/0/0/0/0/0/0/0 Lore% 11 Gallery% 16 Achievement% 16 Wizard Run 0 Options --------- Layout 1 ASCII 0 Keyboard 0 Movement Mouse Keybinds 0 Fullscreen 1 Font 24/Smallcaps Map View 50x35 Zoom Use 0% Tactical HUD 1 Map Filters NONE Filters NONE Steam 1 RUN: a19a2ad1-03e2-4df1-b0bb-3ffd993cdfb7